bitfinex-derivatives/quotes_SOLF0:USTF0_20241217
["timestamp","ask_amount","ask_price","bid_price","bid_amount"]
[1734468579028,5.23169471,227.51,227.49,2.1982]
[1734468579531,5.23169471,227.51,227.48,2.1983]
[1734468580228,5.23169471,227.51,227.45,5.23169471]
[1734468580634,7.43169471,227.53,227.51,2.198]
[1734468581129,7.43169471,227.53,227.47,5.23169471]
[1734468581326,7.43169471,227.53,227.49,2.1981]
[1734468581927,7.43169471,227.53,227.42,9.04222344]
[1734468581928,7.42969471,227.51,227.46,2.1985]
[1734468582128,5.23169471,227.51,227.46,2.1985]
[1734468582932,5.23169471,227.51,227.47,2.1983]
[1734468584029,7.42979471,227.51,227.47,2.1983]
[1734468585833,2.1981,227.5,227.46,2.1984]
[1734468587539,2.1981,227.5,227.47,2.1984]
[1734468589432,5.23169471,227.51,227.47,2.1984]
[1734468589630,5.23169471,227.51,227.44,5.23169471]
[1734468589631,2.2,227.55,227.48,5.23169471]
[1734468590438,5.23169471,227.56,227.48,5.23169471]
[1734468590640,4.4601,227.63,227.52,5.23169471]
[1734468590832,5.23169471,227.59,227.52,5.23169471]
[1734468591035,7.42889471,227.59,227.56,2.1975]
[1734468591532,7.42889471,227.59,227.55,2.1975]
[1734468591737,5.23169471,227.59,227.52,5.23169471]
[1734468591938,5.23169471,227.59,227.48,6.08833023]
[1734468592241,5.23169471,227.59,227.55,2.1975]
[1734468593642,7.42899471,227.59,227.55,2.1975]
[1734468593843,2.2,227.6,227.56,2.1974]
[1734468594039,4.397,227.62,227.55,5.23169471]
[1734468594245,2.197,227.62,227.55,5.23169471]
[1734468595347,2.2,227.64,227.59,2.1972]
[1734468595646,7.42829471,227.65,227.57,5.23169471]
[1734468596446,7.42829471,227.65,227.61,2.1969]
[1734468596642,5.23169471,227.65,227.59,5.23169471]
[1734468596845,5.23169471,227.67,227.59,5.23169471]
[1734468597041,7.43169471,227.67,227.63,2.1968]
[1734468597646,2.2,227.67,227.63,2.1968]
[1734468597843,7.43169471,227.67,227.63,2.1968]
[1734468598445,9.62819471,227.67,227.63,2.1968]
[1734468600351,2.2,227.73,227.57,2.2]
[1734468600550,5.23169471,227.72,227.65,5.23169471]
[1734468601441,2.1961,227.71,227.67,2.1964]
[1734468602050,2.2,227.74,227.67,5.23169471]
[1734468602552,1.4477,227.78,227.69,5.23169471]
[1734468602855,5.23169471,227.76,227.61,3.0471]
[1734468603041,5.23169471,227.74,227.62,2.2]
[1734468603258,5.23169471,227.74,227.67,5.23169471]
[1734468603456,5.23169471,227.74,227.69,2.1962]
[1734468603658,5.23169471,227.74,227.67,5.23169471]
[1734468604563,5.23169471,227.74,227.7,2.1961]
[1734468605765,5.23169471,227.74,227.61,3.0471]
[1734468605963,5.23169471,227.72,227.66,5.23169471]
[1734468606260,5.23169471,227.74,227.68,5.23169471]
[1734468607262,5.23169471,227.74,227.7,2.1961]
[1734468607755,5.23169471,227.74,227.68,5.23169471]
[1734468607960,2.1957,227.75,227.68,5.23169471]
[1734468608561,2.1957,227.75,227.71,2.196]
[1734468610264,2.1958,227.74,227.7,2.1961]
[1734468610461,5.23169471,227.74,227.61,3.0471]
[1734468610756,3.6477,227.78,227.63,5.23169471]
[1734468610757,5.23169471,227.7,227.63,5.23169471]
[1734468611163,2.2,227.71,227.65,5.23169471]
[1734468612362,5.23169471,227.68,227.61,5.23169471]
[1734468613258,5.23169471,227.66,227.56,6.08833023]
[1734468613463,5.23169471,227.66,227.58,5.23169471]
[1734468613666,5.23169471,227.64,227.58,5.23169471]
[1734468614562,7.42839471,227.64,227.6,2.197]
[1734468615859,2.1967,227.64,227.6,2.197]
[1734468616259,2.1966,227.65,227.61,2.197]
[1734468616468,2.1966,227.65,227.6,5.23169471]
[1734468617066,7.43169471,227.66,227.6,5.23169471]
[1734468617067,2.1967,227.64,227.61,2.197]
[1734468617264,2.1967,227.64,227.6,5.23169471]
[1734468618467,2.1967,227.64,227.6,7.42879471]
[1734468619069,2.1969,227.63,227.56,2.2]
[1734468619269,2.1969,227.63,227.56,5.23169471]
[1734468620167,2.1969,227.63,227.59,2.1972]
[1734468622562,5.23169471,227.6,227.52,24.35332094]
[1734468622766,5.23169471,227.6,227.52,5.23169471]
[1734468623067,5.23169471,227.6,227.54,2.1976]
[1734468623269,5.23169471,227.58,227.52,5.23169471]
[1734468623468,5.23169471,227.58,227.5,5.23169471]
[1734468623767,5.23169471,227.56,227.5,5.23169471]
[1734468623964,5.23169471,227.54,227.49,6.08833023]
[1734468624169,5.23169471,227.54,227.47,24.35332094]
[1734468624369,5.23169471,227.54,227.48,4.41627495]
[1734468624569,5.23169471,227.54,227.47,24.35332094]
[1734468624769,5.23169471,227.5,227.44,24.35332094]
[1734468624963,5.23169471,227.48,227.43,24.35332094]
[1734468625166,5.23169471,227.46,227.41,6.08833023]
[1734468625371,2.1987,227.44,227.4,11.32002494]
[1734468625572,5.23169471,227.46,227.39,24.35332094]
[1734468625772,5.23169471,227.46,227.39,5.23169471]
[1734468626467,2.1988,227.43,227.39,5.23169471]
[1734468626976,5.23169471,227.46,227.39,5.23169471]
[1734468627872,2.1987,227.44,227.39,7.43079471]
[1734468628971,5.23169471,227.46,227.39,5.23169471]
[1734468629175,2.1986,227.45,227.4,2.199]
[1734468633073,2.1986,227.45,227.41,2.199]
[1734468635180,2.1986,227.45,227.4,2.199]
[1734468636779,2.1986,227.45,227.41,2.1989]
[1734468638585,2.1987,227.44,227.41,2.1989]
[1734468640382,2.1986,227.45,227.41,2.1989]
[1734468646191,7.43039471,227.44,227.41,2.1989]
[1734468649883,5.23169471,227.44,227.36,2.2]
[1734468650088,5.23169471,227.44,227.4,2.199]
[1734468650089,2.1989,227.42,227.4,2.199]
[1734468650293,5.23169471,227.44,227.4,2.199]
[1734468650891,5.23169471,227.44,227.34,24.35332094]
[1734468651187,5.23169471,227.4,227.33,1.4547]
[1734468651388,5.23169471,227.4,227.31,0.2023]
[1734468651389,2.1994,227.37,227.31,0.2023]
[1734468651596,5.23169471,227.36,227.31,0.2023]
[1734468653493,7.43119471,227.36,227.33,2.1997]
[1734468655791,5.23169471,227.46,227.35,5.23169471]
[1734468655996,5.23169471,227.46,227.39,5.23169471]
[1734468656391,2.1986,227.45,227.41,2.1989]
[1734468657299,2.1985,227.46,227.42,2.1988]
[1734468658901,5.23169471,227.43,227.35,76.03596284]
[1734468659097,5.23169471,227.4,227.36,2.1994]
[1734468659500,5.23169471,227.38,227.36,2.1994]
[1734468660399,7.43099471,227.38,227.34,2.1995]
[1734468660898,5.23169471,227.38,227.31,0.2023]
[1734468661901,5.23169471,227.36,227.33,2.1997]
[1734468663401,7.43119471,227.36,227.33,2.1997]
[1734468663593,5.23169471,227.36,227.33,2.1997]
[1734468664201,5.23169471,227.36,227.32,2.1998]
[1734468664603,5.23169471,227.34,227.31,0.2023]
[1734468664900,5.23169471,227.32,227.31,0.2023]
[1734468666394,7.43149471,227.32,227.31,0.2023]
[1734468667510,2.2003,227.27,227.23,2.2007]
[1734468668001,5.23169471,227.26,227.23,2.2007]
[1734468668299,2.2003,227.27,227.23,2.2007]
[1734468668498,5.23169471,227.26,227.23,2.2007]
[1734468671006,5.23169471,227.26,227.18,24.35332094]
[1734468671007,5.23169471,227.24,227.21,2.2008]
[1734468671407,5.23169471,227.24,227.17,74.55066284]
[1734468671605,5.23169471,227.22,227.17,1.4907]
[1734468672504,5.23169471,227.22,227.19,2.2011]
[1734468674911,2.2,227.29,227.2,5.23169471]
[1734468675110,5.23169471,227.27,227.2,5.23169471]
[1734468675316,1.5214,227.4,227.24,5.23169471]
[1734468675502,2.2,227.33,227.28,2.2002]
[1734468675810,5.23169471,227.29,227.18,26.55332094]
[1734468676011,7.43209471,227.26,227.22,2.2007]
[1734468676310,5.23169471,227.24,227.18,6.08833023]
[1734468676510,5.23169471,227.24,227.17,12.81072494]
[1734468676806,5.23169471,227.24,227.17,6.72239471]
[1734468677419,2.2007,227.23,227.19,2.2011]
[1734468677711,5.23169471,227.24,227.17,1.4907]
[1734468677906,2.2,227.27,227.2,5.23169471]
[1734468678113,2.2,227.27,227.17,1.4907]
[1734468678412,2.2006,227.24,227.2,2.201]
[1734468679403,2.2006,227.24,227.17,1.4907]
[1734468679609,2.2006,227.24,227.21,2.2009]
[1734468680407,2.2006,227.24,227.17,1.4907]
[1734468680612,10.38893596,227.23,227.16,1.4414]
[1734468681214,2.201,227.2,227.12,24.35332094]
[1734468681515,2.201,227.2,227.11,7.62463023]
[1734468681915,2.201,227.2,227.11,1.5363]
[1734468682213,10.36823596,227.2,227.11,1.5363]
[1734468682810,10.36823596,227.2,227.09,5.38757008]
[1734468683207,10.36823596,227.2,227.08,1.4535]
[1734468683413,8.18823596,227.17,227.06,1.5105]
[1734468683715,10.38983596,227.14,227.07,2.2022]
[1734468683916,2.18,227.13,227.05,38.65943029]
[1734468684115,2.18,227.13,227.03,6.08833023]
[1734468684613,2.18,227.13,227.07,2.2022]
[1734468684910,8.18823596,227.11,227.02,25.80682094]
[1734468685111,2.2021,227.09,227.03,4.41388771]
[1734468685317,2.2021,227.09,227.02,7.54183023]
[1734468685509,2.2021,227.09,227.02,1.4535]
[1734468685711,2.18,227.08,227.02,1.4535]
[1734468686315,4.3822,227.08,227.03,2.2026]
[1734468687018,2.18,227.08,227.06,2.2023]
[1734468687821,2.18,227.08,227.0,6.08833023]
[1734468688020,2.18,227.08,227.07,2.2022]
[1734468689818,2.18,227.08,227.05,2.2024]
[1734468690321,2.18,227.08,226.99,32.70530344]
[1734468690522,2.2023,227.07,227.0,4.40295214]
[1734468690722,2.2023,227.07,226.99,1.5105]
[1734468691124,2.2023,227.07,226.99,7.59883023]
[1734468691524,2.2023,227.07,227.02,2.2027]
[1734468691924,2.2025,227.05,227.0,2.2028]
[1734468692219,2.2025,227.05,226.98,6.08833023]
[1734468692723,2.18,227.08,226.98,6.08833023]
[1734468692926,8.18823596,227.09,226.99,4.40405606]
[1734468693127,2.2018,227.12,227.0,24.35332094]
[1734468693423,2.18,227.11,227.01,24.35332094]
[1734468693618,2.18,227.11,227.02,4.40405606]
[1734468693824,2.18,227.11,227.01,24.35332094]
[1734468694030,4.3819,227.11,227.06,2.2023]
[1734468695616,4.4019,227.11,227.06,2.2023]
[1734468696127,4.4019,227.11,227.03,6.08833023]
[1734468696326,4.4019,227.11,227.07,2.2022]
[1734468697222,8.18823596,227.13,227.03,24.35332094]
[1734468697430,2.2,227.14,227.06,24.35332094]
[1734468698025,8.18823596,227.16,227.06,24.35332094]
[1734468698228,8.18823596,227.16,227.07,46.40447586]
[1734468698426,8.18823596,227.16,227.07,24.35332094]
[1734468698730,2.2,227.18,227.09,24.35332094]
[1734468699127,2.2,227.18,227.15,2.2014]
[1734468702431,10.38933596,227.19,227.15,2.2014]
[1734468702626,4.4012,227.18,227.13,2.2016]
[1734468703126,4.4012,227.18,227.09,73.05996284]
[1734468703432,10.36823596,227.19,227.16,2.2014]
[1734468704029,2.18,227.19,227.09,75.23996284]
[1734468704230,50.38,227.38,227.1,134.98875921]
[1734468704427,50.38,227.38,227.14,73.05996284]
[1734468704428,8.18823596,227.27,227.14,73.05996284]
[1734468704627,4.3804,227.26,227.18,2.2011]
[1734468704928,2.18,227.28,227.16,81.2481988]
[1734468705127,2.18,227.28,227.17,121.61323503]
[1734468705331,9.69393596,227.3,227.17,73.05996284]
[1734468705332,11.87393596,227.3,227.17,73.05996284]
[1734468705533,14.07393596,227.3,227.2,2.2009]
[1734468705836,14.07393596,227.3,227.18,75.23996284]
[1734468706230,11.89393596,227.3,227.18,75.23996284]
[1734468706436,4.3801,227.29,227.24,2.2005]
[1734468707939,4.3801,227.29,227.21,2.2009]
[1734468708144,4.3801,227.29,227.18,26.53332094]
[1734468708337,2.2005,227.25,227.18,26.53332094]
[1734468708536,2.2005,227.25,227.21,2.2008]
[1734468709033,8.18823596,227.27,227.21,2.2008]
[1734468709235,2.2004,227.26,227.21,2.2008]
[1734468710038,4.3973,227.45,227.17,2.18]
[1734468710335,8.18823596,227.35,227.21,8.18823596]
[1734468710534,2.18,227.34,227.22,5.1791]
[1734468711537,4.3796,227.34,227.29,2.2]
[1734468714645,4.3796,227.34,227.22,5.1791]
[1734468714646,2.18,227.34,227.22,5.1791]
[1734468714947,2.18,227.34,227.31,2.1999]
[1734468715145,10.36823596,227.35,227.22,5.1791]
[1734468716545,10.36823596,227.35,227.31,2.1998]
[1734468719344,8.18823596,227.38,227.24,8.18823596]
[1734468719646,2.18,227.35,227.27,8.18823596]
[1734468719840,2.18,227.38,227.27,10.36823596]
[1734468720250,8.18823596,227.43,227.27,10.36823596]
[1734468720547,8.18823596,227.46,227.33,8.18823596]
[1734468720742,2.18,227.45,227.33,8.18823596]
[1734468721149,4.3786,227.45,227.41,2.1989]
[1734468721349,2.18,227.45,227.33,11.04673596]
[1734468721752,2.1988,227.43,227.33,11.04673596]
[1734468723368,3.0548,227.49,227.33,11.04673596]
[1734468723369,2.18,227.49,227.36,8.18823596]
[1734468723655,8.18823596,227.53,227.39,8.18823596]
[1734468723846,2.198,227.51,227.39,8.18823596]
[1734468724155,4.4984,227.58,227.39,8.18823596]
[1734468724353,2.1977,227.55,227.5,2.1981]
[1734468725148,4.3777,227.55,227.5,2.1981]
[1734468727257,2.1977,227.54,227.5,2.1981]
[1734468727652,8.18823596,227.54,227.43,1.5558]
[1734468728457,8.18823596,227.54,227.38,10.36823596]
[1734468728655,8.18823596,227.54,227.41,13.40249286]
[1734468728849,2.18,227.55,227.44,8.18823596]
[1734468729356,8.18823596,227.57,227.44,8.18823596]
[1734468729551,1.4151,227.58,227.47,8.18823596]
[1734468729747,2.18,227.58,227.47,8.18823596]
[1734468730354,12.36823596,227.6,227.48,2.18]
[1734468730554,2.1973,227.59,227.48,2.18]
[1734468731859,2.1974,227.58,227.53,2.1977]
[1734468732048,12.36823596,227.6,227.44,1.5143]
[1734468732049,2.0,227.5,227.44,9.70253596]
[1734468732247,2.0,227.5,227.48,2.1982]
[1734468733450,2.0,227.5,227.44,1.5143]
[1734468733654,2.0,227.5,227.49,2.1982]
[1734468737061,2.0,227.5,227.49,2.1982]
[1734468754071,2.0,227.5,227.49,7.4251035]
[1734468754672,2.0,227.5,227.49,2.1982]
[1734468755177,2.1975,227.56,227.53,2.1978]
[1734468755668,7.4243035,227.58,227.54,2.1977]
[1734468758178,5.2269035,227.56,227.47,420.35431982]
[1734468758481,2.1978,227.53,227.5,2.1981]
[1734468765283,2.1979,227.52,227.49,2.1982]
[1734468766285,2.198,227.51,227.48,2.1983]
[1734468767286,2.1982,227.49,227.46,2.1985]
[1734468767585,2.1982,227.49,227.44,5.2269035]
[1734468767982,2.1982,227.49,227.45,2.1985]
[1734468768590,4.378,227.52,227.48,2.1982]
[1734468771887,2.198,227.51,227.48,2.1982]
[1734468772089,7.4069035,227.52,227.46,2.1985]
[1734468772482,2.1981,227.5,227.46,2.1985]
[1734468773188,2.1982,227.49,227.46,2.1985]
[1734468775394,7.4069035,227.52,227.46,2.1985]
[1734468775688,2.1981,227.5,227.46,2.1985]
[1734468776603,2.1981,227.5,227.47,2.1984]
[1734468776800,2.18,227.52,227.46,5.2269035]
[1734468777004,4.3779,227.52,227.46,5.2269035]
[1734468777408,2.1979,227.52,227.46,5.2269035]
[1734468778603,2.1979,227.52,227.44,5.23983008]
[1734468778803,2.1979,227.52,227.47,2.1983]
[1734468780898,2.1979,227.52,227.48,2.1983]
[1734468782208,7.4248035,227.53,227.49,2.1981]
[1734468782406,2.1979,227.53,227.49,2.1981]
[1734468782800,6.88673561,227.54,227.49,2.1981]
[1734468783008,2.1979,227.52,227.49,2.1981]
[1734468783807,2.1978,227.53,227.5,2.198]
[1734468784109,2.1978,227.53,227.47,5.2269035]
[1734468784607,2.18,227.58,227.51,5.2269035]
[1734468784807,8.0756035,227.6,227.51,5.2269035]
[1734468785002,5.2269035,227.58,227.54,2.1976]
[1734468785205,7.4243035,227.58,227.54,2.1976]
[1734468786008,2.1975,227.57,227.54,2.1976]
[1734468787815,3.7256,227.59,227.55,2.1975]
[1734468788024,1.5283,227.59,227.49,24.19802564]
[1734468788313,5.2269035,227.58,227.51,5.2269035]
[1734468788515,2.1975,227.57,227.53,2.1977]
[1734468788717,2.1975,227.57,227.51,5.2269035]
[1734468790116,2.1975,227.57,227.53,2.1977]
[1734468791010,2.1979,227.52,227.49,2.1981]
[1734468791313,7.4069035,227.54,227.47,5.2269035]
[1734468791514,5.2269035,227.52,227.45,24.19802564]
[1734468791812,5.2269035,227.52,227.45,77.82098042]
[1734468792017,5.2269035,227.52,227.45,5.2269035]
[1734468793219,7.4249035,227.52,227.47,2.1984]
[1734468793509,5.2269035,227.52,227.44,10.51953194]
[1734468793714,2.18,227.54,227.44,10.51953194]
[1734468793715,7.4251035,227.5,227.44,10.51953194]
[1734468794012,5.2269035,227.5,227.42,5.2269035]
[1734468794414,7.4252035,227.48,227.43,2.1987]
[1734468794611,2.1983,227.48,227.43,5.2269035]
[1734468794915,5.2269035,227.48,227.41,5.2269035]
[1734468795111,5.2269035,227.46,227.4,72.59407692]
[1734468795415,5.2269035,227.42,227.35,77.82098042]
[1734468795712,5.2269035,227.42,227.35,29.42492914]
[1734468796014,5.2269035,227.4,227.34,24.19802564]
[1734468796215,5.2269035,227.4,227.32,29.42492914]
[1734468796410,5.2269035,227.38,227.32,5.2269035]
[1734468796717,2.1993,227.37,227.32,2.1997]
[1734468797410,5.2269035,227.38,227.31,5.2269035]
[1734468797411,2.1995,227.36,227.31,5.2269035]
[1734468798009,7.4264035,227.36,227.3,6.04950641]
[1734468798215,7.4264035,227.36,227.29,11.27640991]
[1734468798517,7.4264035,227.36,227.31,2.1999]
[1734468800613,2.1995,227.36,227.31,7.4268035]
[1734468801318,2.1995,227.35,227.3,2.2]
[1734468801619,5.2269035,227.36,227.27,2.18]
[1734468801809,5.2269035,227.36,227.28,5.2269035]
[1734468802415,2.1998,227.32,227.28,5.2269035]
[1734468802716,5.2269035,227.34,227.28,5.2269035]
[1734468803014,5.2269035,227.3,227.23,5.2269035]
[1734468804420,2.2002,227.28,227.23,7.4275035]
[1734468808425,5.2269035,227.26,227.17,1.4307]
[1734468808623,5.2269035,227.24,227.17,6.6576035]
[1734468809326,5.2269035,227.24,227.17,12.06312334]
[1734468809926,5.2269035,227.24,227.17,6.6576035]
[1734468810128,5.2269035,227.24,227.17,5.2269035]
[1734468810817,2.2012,227.19,227.09,1.5496]
[1734468811017,2.18,227.21,227.16,5.2269035]
[1734468811220,7.4069035,227.23,227.16,5.2269035]
[1734468812026,2.201,227.21,227.16,7.4282035]
[1734468812717,2.201,227.21,227.16,5.2269035]
[1734468812923,2.201,227.21,227.17,2.2012]
[1734468814224,2.201,227.21,227.18,2.2012]
[1734468816017,7.4069035,227.23,227.16,5.2269035]
[1734468816219,2.18,227.23,227.21,2.2008]
[1734468816421,2.2005,227.25,227.21,2.2008]
[1734468816825,2.2005,227.25,227.22,2.2008]
[1734468817021,9.6073035,227.27,227.2,5.2269035]
[1734468817822,7.4273035,227.27,227.2,5.2269035]
[1734468818331,7.4273035,227.27,227.22,2.2008]
[1734468820232,2.2005,227.26,227.21,2.2009]
[1734468820533,5.2269035,227.27,227.21,2.2009]
[1734468820534,7.4069035,227.27,227.21,2.2009]
[1734468821243,2.2004,227.26,227.21,2.2009]
[1734468823632,2.2004,227.26,227.22,2.2008]
[1734468827035,7.4273035,227.26,227.22,2.2008]
[1734468827738,5.2269035,227.26,227.19,5.2269035]
[1734468828032,2.18,227.27,227.24,2.2006]
[1734468828437,1.4357,227.35,227.25,2.2004]
[1734468828438,9.6070035,227.3,227.25,2.2004]
[1734468828638,7.4270035,227.3,227.25,2.2004]
[1734468828933,7.4270035,227.3,227.23,5.2269035]
[1734468829140,7.4270035,227.3,227.26,2.2004]
[1734468829640,7.4270035,227.3,227.27,2.2003]
[1734468830842,7.4269035,227.3,227.26,2.2004]
[1734468831734,7.4272035,227.28,227.24,2.2005]
[1734468832136,5.2269035,227.28,227.21,5.2269035]
[1734468832737,2.2003,227.27,227.23,2.2006]
[1734468833430,2.2003,227.27,227.24,2.2006]
[1734468834341,2.18,227.31,227.26,2.2004]
[1734468834538,5.2269035,227.28,227.2,2.18]
[1734468834737,5.2269035,227.26,227.2,2.18]
[1734468835041,5.2269035,227.26,227.23,2.2006]
[1734468837238,5.2269035,227.26,227.24,2.2006]
[1734468837944,5.2269035,227.28,227.25,2.2005]
[1734468838144,5.2269035,227.28,227.2,5.2269035]
[1734468838842,5.2269035,227.28,227.2,150.92727802]
[1734468839042,5.2269035,227.28,227.2,272.99569812]
[1734468839235,5.2269035,227.28,227.22,2.2008]
[1734468839440,2.18,227.31,227.19,272.99569812]
[1734468839643,5.2269035,227.29,227.21,5.2269035]
[1734468839842,5.2269035,227.29,227.21,272.99569812]
[1734468840445,7.4270035,227.29,227.21,272.99569812]
[1734468841547,7.4270035,227.29,227.26,2.2004]
[1734468844848,1.4357,227.35,227.25,5.2269035]
[1734468845051,5.2269035,227.34,227.27,5.2269035]
[1734468845654,2.1996,227.34,227.31,2.1999]
[1734468846355,2.1992,227.39,227.31,5.2269035]
[1734468846855,2.1992,227.39,227.36,2.1994]
[1734468847049,7.4260035,227.4,227.36,2.1994]
[1734468847855,5.2269035,227.38,227.36,2.1994]
[1734468848253,5.2269035,227.38,227.3,145.70037452]
[1734468848447,5.2269035,227.38,227.3,77.82098042]
[1734468849851,5.2269035,227.38,227.36,2.1994]
[1734468850047,2.1992,227.39,227.36,2.1994]
[1734468850048,7.4261035,227.39,227.36,2.1994]
[1734468850250,7.57198129,227.43,227.36,2.1994]
[1734468850458,5.2269035,227.4,227.36,2.1994]
[1734468851558,7.4260035,227.4,227.36,2.1994]
[1734468856866,5.2269035,227.4,227.36,2.1994]
[1734468857170,2.1992,227.39,227.36,2.1994]
[1734468859472,2.1992,227.39,227.26,24.19802564]
[1734468859473,7.4069035,227.38,227.24,1.4148]
[1734468859667,5.2269035,227.3,227.24,1.4148]
[1734468860063,3.0386,227.38,227.24,1.4148]
[1734468860064,3.0386,227.38,227.28,5.2269035]
[1734468860269,5.2269035,227.38,227.3,5.2269035]
[1734468860969,5.2269035,227.38,227.3,7.4069035]
[1734468861269,7.4262035,227.38,227.3,2.18]
[1734468861464,7.4262035,227.38,227.3,7.4069035]
[1734468862767,7.4262035,227.38,227.3,2.18]
[1734468862969,7.4262035,227.38,227.3,7.4069035]
[1734468863172,2.1993,227.38,227.3,7.4069035]
[1734468863370,5.2269035,227.35,227.3,2.18]
[1734468863666,7.4262035,227.37,227.28,5.2269035]
[1734468863871,7.4262035,227.37,227.29,2.18]
[1734468864073,7.4262035,227.37,227.3,5.2269035]
[1734468864471,7.4262035,227.37,227.33,2.1997]
[1734468866073,5.2269035,227.35,227.3,2.1999]
[1734468866368,5.2269035,227.31,227.24,1.4148]
[1734468866673,2.2001,227.3,227.26,2.2003]
[1734468867771,5.2269035,227.29,227.23,6.04950641]
[1734468867971,5.2269035,227.29,227.22,11.22375874]
[1734468868273,2.18,227.35,227.22,11.22375874]
[1734468868573,2.18,227.35,227.22,34.59918147]
[1734468868773,5.2269035,227.29,227.22,34.59918147]
[1734468868968,2.2,227.3,227.26,2.2004]
[1734468869278,2.18,227.35,227.28,5.2269035]
[1734468869279,7.4069035,227.35,227.28,5.2269035]
[1734468869463,2.18,227.35,227.28,5.2269035]
[1734468869673,1.4436,227.39,227.32,5.2269035]
[1734468869866,6.6705035,227.39,227.32,5.2269035]
[1734468870562,2.18,227.43,227.32,5.2269035]
[1734468870763,5.2269035,227.41,227.32,5.2269035]
[1734468871872,2.1991,227.4,227.36,2.1994]
[1734468873969,2.1991,227.4,227.37,2.1993]
[1734468874275,5.2269035,227.39,227.32,5.2269035]
[1734468874472,5.2269035,227.39,227.35,2.1994]
[1734468874772,5.2269035,227.39,227.32,5.2269035]
[1734468874773,2.1991,227.4,227.32,5.2269035]
[1734468874975,7.4260035,227.4,227.36,2.1994]
[1734468879675,2.1991,227.4,227.36,2.1994]
[1734468879974,7.4258035,227.42,227.38,2.1992]
[1734468880377,7.4256035,227.44,227.36,5.2269035]
[1734468880879,1.5627,227.51,227.35,2.18]
[1734468880880,5.3308147,227.5,227.38,5.2269035]
[1734468881072,7.4254035,227.47,227.43,2.1987]
[1734468881275,7.4254035,227.47,227.38,5.2269035]
[1734468881681,7.4254035,227.47,227.36,1.4994]
[1734468881682,7.4254035,227.47,227.4,5.2269035]
[1734468881981,5.2269035,227.47,227.4,5.2269035]
[1734468882180,5.2269035,227.45,227.38,24.19802564]
[1734468882480,5.2269035,227.45,227.38,5.2269035]
[1734468882674,5.2269035,227.45,227.38,29.42492914]
[1734468882873,2.1985,227.46,227.43,2.1988]
[1734468888882,5.2269035,227.47,227.43,2.1988]
[1734468889082,5.2269035,227.47,227.4,5.2269035]
[1734468890380,5.2269035,227.47,227.44,2.1987]
[1734468890586,7.4253035,227.47,227.44,2.1987]
[1734468893987,5.2269035,227.45,227.43,2.1987]
[1734468894289,2.1985,227.46,227.43,2.1987]
[1734468896491,5.2269035,227.49,227.41,5.2269035]
[1734468897490,7.4251035,227.49,227.45,2.1985]
[1734468898297,2.1982,227.49,227.41,5.2269035]
[1734468898598,9.5846035,227.54,227.51,2.198]
[1734468898993,7.4246035,227.54,227.51,2.198]
[1734468899493,2.1977,227.54,227.51,2.198]
[1734468899693,1.4476,227.59,227.49,5.2269035]
[1734468899898,3.6076,227.59,227.51,5.2269035]
[1734468900199,5.2269035,227.58,227.51,5.2269035]
[1734468900394,2.9213,227.64,227.55,5.2269035]
[1734468900592,5.2269035,227.63,227.55,5.2269035]
[1734468901202,5.2269035,227.59,227.53,5.2269035]
[1734468901504,5.2269035,227.61,227.55,5.2269035]
[1734468902199,5.2269035,227.61,227.5,2.16]
[1734468902397,7.4239035,227.61,227.56,2.1975]
[1734468902598,7.4239035,227.61,227.54,5.2269035]
[1734468902799,7.4239035,227.61,227.54,7.3869035]
[1734468902991,5.2269035,227.57,227.47,6.04950641]
[1734468903195,5.2269035,227.57,227.5,5.2269035]
[1734468903400,5.2269035,227.51,227.44,2.16]
[1734468903699,5.2269035,227.51,227.48,2.1983]
[1734468903907,5.2269035,227.51,227.44,5.2269035]
[1734468904397,2.16,227.52,227.43,5.1487868]
[1734468904699,5.2269035,227.49,227.43,5.1487868]
[1734468905404,5.2269035,227.49,227.45,2.1985]
[1734468905696,2.1982,227.5,227.45,2.1985]
[1734468906103,4.358,227.52,227.46,5.2269035]
[1734468906303,9.5849035,227.52,227.46,5.2269035]
[1734468906801,3.025,227.56,227.43,5.1487868]
[1734468906802,3.025,227.56,227.48,5.2269035]